fUSD/lending_fUSD_20250206
["ID","MTS","AMOUNT","RATE_DAILY","PERIOD"]
[351837518,1738810239369,-372.04,0.0001905,2]
[351837520,1738810239378,-951.15,0.0001907,2]
[351837522,1738810239386,-369.66,0.0001914,2]
[351837524,1738810239395,-370.24,0.00019144,2]
[351837525,1738810239405,-377.65,0.00019153,2]
[351837527,1738810239414,-150.0,0.00019178,2]
[351837529,1738810239423,-1009.95323441,0.00019212,2]
[351837531,1738810239432,-1000.0,0.00019212,2]
[351837533,1738810239442,-380.28,0.00019293,2]
[351837535,1738810239451,-161.32,0.0001933,2]
[351837537,1738810239460,-381.8,0.0001935,2]
[351837539,1738810239470,-300.54489133,0.0001946,2]
[351837540,1738810239479,-381.42,0.00019471,2]
[351837541,1738810239488,-371.36,0.00019496,2]
[351837542,1738810239498,-379.8,0.00019525,2]
[351837543,1738810239507,-367.54,0.00019578,2]
[351837544,1738810239516,-368.11,0.00019675,2]
[351837545,1738810239525,-150.0,0.00019683,2]
[351837546,1738810239534,-372.03,0.00019849,2]
[351837547,1738810239544,-778.29,0.0002,2]
[351837548,1738810239554,-22631.59,0.0002,2]
[351837549,1738810239564,-152.57,0.0002,31]
[351837550,1738810239573,-152.57,0.0002,31]
[351837551,1738810239583,-152.57,0.0002,31]
[351837552,1738810239592,-152.57,0.0002,31]
[351837553,1738810239601,-152.57,0.0002,31]
[351837554,1738810239614,-152.57,0.0002,31]
[351837555,1738810239624,-152.57,0.0002,31]
[351837556,1738810239637,-5615.629513,0.0002,2]
[351837557,1738810239646,-150.0,0.0002,2]
[351837559,1738810239656,-1995.3268979,0.00020095,2]
[351837560,1738810239666,-164.93818264,0.00020173,2]
[351837562,1738810239675,-150.0,0.00020187,2]
[351837564,1738810239685,-4000.0,0.0002019,30]
[351837566,1738810239694,-1000.0,0.0002019,30]
[351837568,1738810239704,-200.0,0.00020192,2]
[351837570,1738810239713,-1150.80146867,0.00020194,10]
[351837572,1738810239723,-500.0,0.00020195,2]
[351837574,1738810239733,-3750.815204,0.00020195,2]
[351837576,1738810239743,-3750.815204,0.00020195,2]
[351837578,1738810239752,-1158.46,0.00020195,2]
[351837580,1738810239761,-300.253638,0.00020195,2]
[351837582,1738810239770,-300.253638,0.00020195,2]
[351837584,1738810239779,-300.253638,0.00020195,2]
[351837586,1738810239788,-300.253638,0.00020195,2]
[351837588,1738810239798,-22858.2136448,0.00020195,2]
[351837590,1738810239807,-239.65741907,0.00020195,2]
[351837592,1738810239817,-156.0163774,0.00020195,2]
[351837594,1738810239826,-55102.24729813,0.00020195,2]
[351837596,1738810239836,-725236.21186451,0.00020195,30]
[351837598,1738810239845,-324.22351497,0.00020195,120]
[351837600,1738810239854,-1961.23099271,0.00020195,5]
[351837602,1738810239863,-695.6588482,0.00020195,10]
[351837604,1738810239872,-439.53618509,0.00020195,30]
[351837606,1738810239884,-4066592.29137239,0.00020195,30]
[351837608,1738810239893,-253960.10590208,0.00020195,30]
[351837610,1738810239903,-344.57571497,0.00020195,2]
[351837622,1738810239911,-208923.98720171,0.00020195,30]
[351837624,1738810240032,-211.32816376,0.00020195,7]
[351837626,1738810240042,-7796.01352901,0.00020195,7]
[351837628,1738810240052,-611.30637652,0.00020195,6]
[351837630,1738810240061,-1011.56069984,0.00020195,15]
[351837632,1738810240070,-1404.00285747,0.00020195,10]
[351837634,1738810240080,-753.49145334,0.00020195,2]
[351837636,1738810240090,-1504.47791487,0.00020195,2]
[351837638,1738810240099,-240.060328,0.00020195,120]
[351837640,1738810240109,-6735.92233835,0.00020195,2]
[351837665,1738810240296,-2429.4141106,0.00020195,2]
[351837668,1738810240309,-469.31070039,0.00020195,2]
[351837670,1738810240320,-577.46205938,0.00020195,2]
[351837672,1738810240332,-34606.41992589,0.00020195,2]
[351837695,1738810240547,-462.00995226,0.00020195,2]
[351837697,1738810240560,-739.71066653,0.00020195,2]
[351837700,1738810240572,-2293.8030258,0.00020195,2]
[351837702,1738810240584,-836.50226149,0.00020195,2]
[351837708,1738810240635,-10310.28202644,0.00020195,2]
[351837710,1738810240646,-1787.93298377,0.00020195,2]
[351838066,1738810244180,-7070.67486024,0.00020195,2]
[351838088,1738810244394,-485.305,0.00020195,2]
[351838298,1738810246530,-851.19,0.00020195,2]
[351838909,1738810573938,-290.7457,8.973e-05,2]
[351838910,1738810975427,346.0,0.0002,120]
[351838911,1738811178928,285.69,0.0002,120]
[351838915,1738811431628,-296.880003,9.87e-05,2]
[351838916,1738811431846,-203.119997,9.87e-05,2]
[351838917,1738811431855,-3015.11785767,9.931e-05,2]
[351838918,1738811431865,-4366.56837167,9.935e-05,2]
[351838919,1738811431876,-7264.8,9.935e-05,2]
[351838923,1738811437377,-2448.75714426,9.935e-05,2]
[351838924,1738811437392,-1249.3,9.935e-05,2]
[351838925,1738811437563,-932.91,9.935e-05,2]
[351838926,1738811437580,-4431.84054456,9.935e-05,2]
[351838927,1738811437589,-11148.26858369,9.936e-05,2]
[351838928,1738811437599,-20694.17606049,9.943e-05,2]
[351838929,1738811437608,-3015.11785767,9.951e-05,2]
[351838930,1738811437617,-11148.26858369,9.956e-05,2]
[351838931,1738811437628,-20694.17606049,9.957e-05,2]
[351838932,1738811437638,-3015.11785767,9.958e-05,2]
[351838933,1738811437647,-11148.26858369,9.972e-05,2]
[351838934,1738811437657,-3015.11785767,9.977e-05,2]
[351838935,1738811437666,-11148.26858369,9.992e-05,2]
[351838936,1738811437675,-20694.17606049,9.994e-05,2]
[351838937,1738811437685,-350.22,0.00010137,2]
[351838938,1738811437695,-150.0,0.00014217,2]
[351838939,1738811437705,-1000.0,0.00014477,2]
[351838940,1738811437714,-1000.0,0.00015479,2]
[351838941,1738811437723,-350.22,0.00016813,2]
[351838942,1738811437732,-393.93,0.00016898,2]
[351838943,1738811437741,-369.17,0.00017041,2]
[351838944,1738811437749,-1000.0,0.00018891,2]
[351838945,1738811437758,-200.0,0.00018898,2]
[351838946,1738811437767,-200.0,0.00018969,2]
[351838947,1738811437776,-177.14,0.00019039,2]
[351838948,1738811437785,-163.59,0.00019113,2]
[351838949,1738811437794,-707.75,0.00019113,30]
[351838950,1738811437803,-162.12,0.00019117,2]
[351838951,1738811437811,-393.93,0.00019161,2]
[351838952,1738811437820,-150.0,0.00019178,2]
[351838953,1738811437829,-1000.0,0.00019387,2]
[351838954,1738811437838,-381.51,0.00019388,2]
[351838955,1738811437847,-150.0,0.00019683,2]
[351838956,1738811437856,-3000.0,0.000197,2]
[351838957,1738811437865,-1864.90651,0.0001999,2]
[351838958,1738811437874,-1862.30510466,0.00020096,2]
[351838959,1738811437884,-150.0,0.00020187,2]
[351838960,1738811437893,-2000.0,0.0002019,30]
[351838961,1738811437903,-1352.0,0.0002019,30]
[351838962,1738811437911,-1150.80146867,0.00020194,10]
[351838963,1738811437920,-899.411,0.00020195,2]
[351838964,1738811437930,-500.0,0.00020195,2]
[351838965,1738811437938,-2000.0,0.00020195,30]
[351838967,1738811437947,-1158.46,0.00020195,2]
[351838968,1738811437956,-239.65741907,0.00020195,2]
[351838970,1738811437964,-55102.24729813,0.00020195,2]
[351838972,1738811437973,-345852.18341614,0.00020196,2]
[351838974,1738811437983,-1018.54641601,0.00020196,2]
[351838976,1738811437992,-5128.57790526,0.00020196,2]
[351838978,1738811438001,-597.40569257,0.00020196,120]
[351838980,1738811438011,-523.66075218,0.00020196,7]
[351838981,1738811438019,-2428.98300203,0.00020196,2]
[351838982,1738811438028,-300.0,0.00020196,15]
[351838983,1738811438037,-80061.35469033,0.00020196,2]
[351838984,1738811438046,-2384.45323533,0.00020196,120]
[351838985,1738811438056,-213296.66141252,0.00020196,2]
[351838986,1738811438065,-150.29021254,0.00020196,2]
[351838987,1738811438074,-964.57548056,0.00020196,5]
[351838988,1738811438083,-5019.91608533,0.00020196,2]
[351838989,1738811438092,-359.27034488,0.00020196,90]
[351838990,1738811438101,-2241.95433663,0.00020196,14]
[351838991,1738811438110,-246.5060834,0.00020196,2]
[351838992,1738811438119,-162.64703198,0.00020196,2]
[351838993,1738811438129,-861.94074535,0.00020196,5]
[351838994,1738811438139,-1248.41721295,0.00020196,2]
[351838995,1738811438148,-216.30019167,0.00020196,60]
[351838996,1738811438158,-7637.89906736,0.00020196,2]
[351838997,1738811438168,-51999.95623602,0.00020196,30]
[351838998,1738811438177,-154.68374535,0.00020196,120]
[351838999,1738811438186,-22890.67373302,0.00020196,120]
[351839001,1738811438195,-1223.06178881,0.00020196,15]
[351839003,1738811438205,-2210.0095629,0.00020196,10]
[351839005,1738811438214,-180.25350951,0.00020196,2]
[351839007,1738811438224,-155.10771478,0.00020196,120]
[351839009,1738811438234,-1030.47249584,0.00020196,2]
[351839011,1738811438243,-584.65623675,0.00020196,5]
[351839013,1738811438253,-9600.11413979,0.00020196,2]
[351839015,1738811438262,-588.5255122,0.00020196,2]
[351839017,1738811438271,-213606.78297013,0.00020196,120]
[351839019,1738811438279,-9141.67390127,0.00020196,2]
[351839021,1738811438288,-1297.78683907,0.00020196,2]
[351839023,1738811438297,-2240.16425063,0.00020196,10]
[351839025,1738811438310,-1000.0,0.00020196,10]
[351839027,1738811438319,-3384.93188283,0.00020196,2]
[351839029,1738811438328,-20584.14704769,0.00020196,7]
[351839031,1738811438338,-4363.79546629,0.00020196,7]
[351839033,1738811438348,-204.7647857,0.00020196,30]
[351839035,1738811438357,-22554.6273424,0.00020196,2]
[351839037,1738811438367,-12702.3309951,0.00020196,2]
[351839039,1738811438376,-1901.61643891,0.00020196,2]
[351839041,1738811438387,-182.16891157,0.00020196,2]
[351839043,1738811438397,-14690.23526739,0.00020196,3]
[351839045,1738811438406,-643.0,0.00020196,2]
[351839047,1738811438415,-5261.56802708,0.00020196,4]
[351839049,1738811438424,-960.298184,0.00020196,2]
[351839051,1738811438434,-15282.59913957,0.00020196,10]
[351839053,1738811438443,-9544.14951096,0.00020196,2]
[351839055,1738811438452,-176.58655675,0.00020196,120]
[351839057,1738811438461,-500.0,0.00020196,10]
[351839059,1738811438471,-18679.66655984,0.00020196,5]
[351839061,1738811438480,-25088.09099817,0.00020196,2]
[351839063,1738811438489,-12742.16250065,0.00020196,30]
[351839065,1738811438499,-567.18618867,0.00020196,2]
[351839067,1738811438508,-51400.49168581,0.00020196,30]
[351839069,1738811438517,-1818.74870361,0.00020196,2]
[351839071,1738811438527,-3211.49609629,0.00020196,2]
[351839073,1738811438536,-152.81188409,0.00020196,2]
[351839075,1738811438545,-173.65455112,0.00020196,2]
[351839077,1738811438555,-60991.8876754,0.00020196,10]
[351839079,1738811438564,-10562.939551,0.00020196,15]
[351839081,1738811438574,-7016.27731878,0.00020196,2]
[351839083,1738811438584,-51048.49993275,0.00020196,7]
[351839085,1738811438593,-550.0,0.00020196,2]
[351839087,1738811438602,-1452.01030672,0.00020196,2]
[351839089,1738811438611,-998.13374939,0.00020196,2]
[351839091,1738811438620,-1022.18585864,0.00020196,7]
[351839093,1738811438629,-945.2357834,0.00020196,2]
[351839095,1738811438642,-10599.82809332,0.00020196,2]
[351839097,1738811438651,-168035.34599801,0.00020196,2]
[351839099,1738811438660,-14796.92164044,0.00020196,2]
[351839101,1738811438670,-871.28308498,0.00020196,120]
[351839103,1738811438679,-226.63331551,0.00020196,2]
[351839105,1738811438688,-171.99626928,0.00020196,2]
[351839107,1738811438697,-1266.96000925,0.00020196,4]
[351839109,1738811438707,-6000.0,0.00020196,2]
[351839110,1738811438716,-371.62625818,0.00020196,2]
[351839112,1738811438726,-1455.66927472,0.00020196,2]
[351839114,1738811438737,-1023.00620287,0.00020196,2]
[351839117,1738811438746,-457.86578171,0.00020196,7]
[351839119,1738811438755,-8549.55153293,0.00020196,2]
[351839121,1738811438765,-898.59098443,0.00020196,30]
[351839123,1738811438775,-95320.85598804,0.00020196,2]
[351839124,1738811438784,-1118.89437312,0.00020196,120]
[351839126,1738811438794,-445.38809776,0.00020196,2]
[351839128,1738811438803,-1056.83008567,0.00020196,2]
[351839130,1738811438812,-21069.0849391,0.00020196,2]
[351839132,1738811438821,-6243.72798262,0.00020196,120]
[351839134,1738811438831,-2500.0,0.00020196,2]
[351839136,1738811438840,-573.76443544,0.00020196,2]
[351839138,1738811438850,-180774.26174726,0.00020196,3]
[351839140,1738811438859,-338.93791563,0.00020196,2]
[351839142,1738811438869,-1099.99508801,0.00020196,2]
[351839144,1738811438879,-533.76170768,0.00020196,2]
[351839146,1738811438890,-299.18417331,0.00020196,2]
[351839148,1738811438899,-903.56517586,0.00020196,2]
[351839150,1738811438908,-4774.64170293,0.00020196,60]
[351839152,1738811438918,-15441.82331404,0.00020196,2]
[351839154,1738811438928,-476.99017246,0.00020196,2]
[351839156,1738811438937,-233.33946775,0.00020196,120]
[351839158,1738811438946,-168.61222096,0.00020196,2]
[351839160,1738811438955,-227.39643828,0.00020196,2]
[351839162,1738811438964,-182444.48934611,0.00020196,7]
[351839164,1738811438973,-1570.93066698,0.00020196,2]
[351839166,1738811438982,-55068.78781822,0.00020196,2]
[351839168,1738811438991,-14312.35874808,0.00020196,2]
[351839170,1738811438999,-49511.26245977,0.00020196,2]
[351839172,1738811439010,-3070.49772569,0.00020196,5]
[351839174,1738811439019,-4783.49764578,0.00020196,10]
[351839176,1738811439029,-542.34764649,0.00020196,2]
[351839178,1738811439039,-4958.95431834,0.00020196,2]
[351839180,1738811439048,-5146.91095988,0.00020196,2]
[351839182,1738811439057,-1001.56072902,0.00020196,2]
[351839184,1738811439066,-270.58824655,0.00020196,10]
[351839185,1738811439075,-361.12029132,0.00020196,2]
[351839187,1738811439085,-13146.15283932,0.00020196,5]
[351839189,1738811439095,-2183.26163786,0.00020196,2]
[351839191,1738811439104,-57796.7535166,0.00020196,30]
[351839193,1738811439114,-280.83347262,0.00020196,2]
[351839195,1738811439124,-777.92398784,0.00020196,120]
[351839197,1738811439136,-640.00589488,0.00020196,30]
[351839199,1738811439145,-305590.40037914,0.00020196,30]
[351839201,1738811439155,-742.21416783,0.00020196,2]
[351839203,1738811439166,-14621.74210896,0.00020196,2]
[351839205,1738811439176,-22147.44351876,0.00020196,45]
[351839207,1738811439186,-63237.08952532,0.00020196,30]
[351839209,1738811439195,-56571.77669962,0.00020196,30]
[351839211,1738811439205,-24843.43048125,0.00020196,14]
[351839213,1738811439215,-5757.70707106,0.00020196,10]
[351839215,1738811439225,-2384561.72076503,0.00020196,60]
[351839217,1738811439240,-5593.59999998,0.00020196,60]
[351839219,1738811439251,-26007.85737545,0.00020196,60]
[351839248,1738811439515,-807.73443717,0.00020196,60]
[351839257,1738811439590,-440.30697196,0.00020196,60]
[351839259,1738811439602,-258.03676712,0.00020196,60]
[351839261,1738811439613,-1406.24349477,0.00020196,60]
[351839263,1738811439624,-614.81163866,0.00020196,60]
[351839265,1738811439637,-424.0,0.00020196,3]
[351839267,1738811439646,-300.253638,0.00020196,2]
[351839269,1738811439655,-129.25678539,0.00020196,2]
[351839271,1738811439666,-1583.37340851,0.00020196,60]
[351839277,1738811439705,-727.40483639,0.00020196,60]
[351839279,1738811439716,-17004.07780853,0.00020196,60]
[351839281,1738811439727,-12060.47143067,0.00020196,60]
[351839289,1738811439791,-535.85788251,0.00020196,60]
[351839291,1738811439803,-1840.0,0.00020196,60]
[351839293,1738811439814,-7884.46075172,0.00020196,60]
[351839564,1738811442535,-5975.94569731,0.00020196,60]
[351839572,1738811442607,-453.0,0.00020196,60]
[351839574,1738811442618,-500.0,0.00020196,60]
[351839594,1738811442795,-799.275,0.00020196,60]
[351839631,1738811443067,5000.0,8.973e-05,2]
[351839878,1738811445591,-52537.0,0.00020196,60]
[351839880,1738811445603,-23937.40437994,0.00020196,60]
[351839882,1738811445613,-3847.98355838,0.00020196,60]
[351839889,1738811445675,-3092.969476,0.00020196,60]
[351839892,1738811445687,-532.03038601,0.00020196,60]
[351839909,1738811445837,-31501.19655692,0.00020196,60]
[351840609,1738811486049,2773.0016,8.973e-05,2]
[351840610,1738811913504,317.6,9e-05,2]
[351840625,1738812631726,-200.0,9.931e-05,2]
[351840627,1738812631736,-232.01492111,9.937e-05,2]
[351840629,1738812631746,-200.0,9.942e-05,2]
[351840630,1738812631758,-200.0,9.945e-05,2]
[351840631,1738812631767,-232.01492111,9.951e-05,2]
[351840632,1738812631777,-232.01492111,9.953e-05,2]
[351840633,1738812631787,-4956.04735011,9.955e-05,2]
[351840634,1738812631797,-1463.51123475,9.965e-05,2]
[351840635,1738812631813,-421.81367686,9.965e-05,2]
[351840636,1738812631837,-1026.39824093,9.965e-05,2]
[351840637,1738812631950,-2044.32419757,9.965e-05,2]
[351840638,1738812631960,-346.30949659,9.968e-05,2]
[351840639,1738812631970,-22.84359715,9.969e-05,2]
[351840640,1738812631982,-1298.24234568,9.969e-05,2]
[351840641,1738812631993,-1028.79,9.969e-05,2]
[351840642,1738812632005,-1143.87326722,9.969e-05,2]
[351840643,1738812632016,-254.33428482,9.969e-05,2]
[351840644,1738812632066,-1027.61307614,9.969e-05,2]
[351840654,1738812637664,-180.3507791,9.969e-05,2]
[351840655,1738812637674,-346.30949659,9.97e-05,2]
[351840656,1738812637683,-4956.04735011,9.97e-05,2]
[351840657,1738812637692,-346.30949659,9.978e-05,2]
[351840658,1738812637701,-346.30949659,9.98e-05,2]
[351840659,1738812637713,-232.01492111,9.994e-05,2]
[351840660,1738812637722,-200.0,9.994e-05,2]
[351840661,1738812637731,-200.0,9.995e-05,2]
[351840662,1738812637741,-550.0,0.00013,2]
[351840663,1738812637751,-150.0,0.00013979,2]
[351840664,1738812637760,-798.87782342,0.00014003,2]
[351840665,1738812637770,-150.0,0.000143,2]
[351840666,1738812637779,-150.0,0.000143,2]
[351840667,1738812637791,-1000.0,0.00014445,2]
[351840668,1738812637800,-1000.0,0.00014999,2]
[351840669,1738812637810,-600.0,0.00015,2]
[351840670,1738812637819,-1000.0,0.00016199,2]
[351840671,1738812637830,-650.0,0.00017,2]
[351840672,1738812637839,-354.53,0.00017418,2]
[351840673,1738812637849,-174.01,0.00018666,2]
[351840674,1738812637858,-179.6,0.00018698,2]
[351840675,1738812637868,-15614.0,0.00018731,2]
[351840676,1738812637878,-700.0,0.00019,2]
[351840677,1738812637888,-672.36,0.0001914,30]
[351840678,1738812637897,-200.0,0.00019185,2]
[351840679,1738812637907,-400.0,0.000192,7]
[351840680,1738812637916,-800.0,0.000193,7]
[351840681,1738812637925,-1000.0,0.00019384,2]
[351840682,1738812637935,-6231.0,0.000194,2]
[351840684,1738812637944,-1200.0,0.000194,7]
[351840685,1738812637954,-704.29,0.00019441,2]
[351840687,1738812637963,-1700.0,0.000195,7]
[351840688,1738812637973,-200.0,0.00019592,2]
[351840689,1738812637983,-2100.0,0.000196,7]
[351840690,1738812637993,-354.53,0.00019682,2]
[351840691,1738812638003,-400.0,0.000197,7]
[351840692,1738812638012,-400.0,0.000198,7]
[351840693,1738812638022,-400.0,0.000199,7]
[351840694,1738812638031,-23123.47591026,0.000199,7]
[351840695,1738812638040,-150.0,0.00019919,2]
[351840696,1738812638049,-200.0,0.0002,6]
[351840697,1738812638059,-200.0,0.0002,14]
[351840698,1738812638068,-200.0,0.0002,5]
[351840699,1738812638078,-200.0,0.0002,4]
[351840700,1738812638087,-200.0,0.0002,7]
[351840701,1738812638097,-200.0,0.0002,6]
[351840702,1738812638106,-200.0,0.0002,21]
[351840704,1738812638116,-200.0,0.0002,21]
[351840706,1738812638125,-200.0,0.0002,4]
[351840707,1738812638134,-200.0,0.0002,4]
[351840708,1738812638147,-200.0,0.0002,5]
[351840709,1738812638156,-187.43,0.0002,7]
[351840710,1738812638166,-1158.46,0.00020194,2]
[351840712,1738812638175,-1000.0,0.00020195,2]
[351840714,1738812638184,-239.65741907,0.00020195,2]
[351840716,1738812638193,-156.0163774,0.00020195,2]
[351840718,1738812638203,-55102.24729813,0.00020195,2]
[351840720,1738812638212,-1000.0,0.00020195,2]
[351840722,1738812638221,-333.4934,0.00020195,2]
[351840725,1738812638230,-719.528,0.00020195,2]
[351840727,1738812638239,-278.778117,0.00020195,2]
[351840729,1738812638249,-278.778117,0.00020195,2]
[351840730,1738812638258,-278.778117,0.00020195,2]
[351840732,1738812638267,-278.778117,0.00020195,2]
[351840734,1738812638276,-3750.815204,0.00020195,2]
[351840736,1738812638286,-3750.815204,0.00020195,2]
[351840739,1738812638295,-3750.815204,0.00020195,2]
[351840741,1738812638304,-3750.815204,0.00020195,2]
[351840742,1738812638314,-3750.815204,0.00020195,2]
[351840744,1738812638323,-3750.815204,0.00020195,2]
[351840747,1738812638332,-3750.815204,0.00020195,2]
[351840749,1738812638343,-3750.815204,0.00020195,2]
[351840751,1738812638352,-3750.815204,0.00020195,2]
[351840753,1738812638361,-3750.815204,0.00020195,2]
[351840755,1738812638369,-894644.39326637,0.00020195,60]
[351840757,1738812638379,-1818.12998657,0.00020195,2]
[351840759,1738812638388,-6687.95423017,0.00020195,4]
[351840760,1738812638397,-1489045.25132563,0.00020195,30]
[351840762,1738812638407,-1043.63326131,0.00020195,120]
[351840764,1738812638419,-1160.50396364,0.00020195,90]
[351840766,1738812638427,-199661.03889729,0.00020195,2]
[351840768,1738812638437,-555.01872721,0.00020195,5]
[351840770,1738812638446,-1471.9428576,0.00020195,10]
[351840772,1738812638455,-624.46451205,0.00020195,30]
[351840774,1738812638464,-120757.47889637,0.00020195,2]
[351840776,1738812638473,-171.20987586,0.00020195,91]
[351840778,1738812638481,-2361593.34163043,0.00020195,30]
[351840781,1738812638497,-8519.11979,0.00020195,30]
[351840783,1738812638508,-3779.0,0.00020195,30]
[351840785,1738812638518,-2036.12711868,0.00020195,30]
[351840787,1738812638530,-974.74704773,0.00020195,30]
[351840933,1738812639738,-244.27,0.00019987,2]
[351840936,1738812639747,-273.86837382,0.00020195,30]
[351840986,1738812640009,-3563.4052644,0.00020195,30]
[351840989,1738812640021,-321.2614063,0.00020195,30]
[351841699,1738812645887,-313.32098768,0.0002,2]
[351841704,1738812646053,-293.49044523,0.0002,2]
[351842166,1738813831915,-200.0,9.933e-05,2]
[351842167,1738813831925,-4923.93463685,9.934e-05,2]
[351842168,1738813831934,-1373.25401635,9.935e-05,2]
[351842169,1738813831946,-1677.34175643,9.935e-05,2]
[351842170,1738813831972,-646.9888024,9.935e-05,2]
[351842171,1738813832027,-323.96025903,9.935e-05,2]
[351842172,1738813832131,-2243.3150386,9.935e-05,2]
[351842173,1738813832143,-5171.28082732,9.935e-05,2]
[351842174,1738813832153,-200.0,9.936e-05,2]
[351842175,1738813832163,-1621.0278072,9.936e-05,2]
[351842176,1738813832177,-9432.41340714,9.936e-05,2]
[351842177,1738813832188,-506.15434778,9.936e-05,2]
[351842178,1738813832199,-842.17747962,9.936e-05,2]
[351842179,1738813832214,-520.41993916,9.936e-05,2]
[351842180,1738813832225,-649.05970489,9.936e-05,2]
[351842181,1738813832237,-1209.496,9.936e-05,2]
[351842182,1738813832255,-582.64756535,9.936e-05,2]
[351842183,1738813832265,-2328.87449073,9.936e-05,2]
[351842184,1738813832276,-9794.45916278,9.936e-05,2]
[351842185,1738813832286,-282.0149211,9.936e-05,2]
[351842186,1738813832295,-200.0,9.941e-05,2]
[351842187,1738813832304,-346.30949659,9.942e-05,2]
[351842188,1738813832313,-6577.57393949,9.942e-05,2]
[351842189,1738813832323,-2881.5806555,9.944e-05,2]
[351842190,1738813832332,-2881.5806555,9.947e-05,2]
[351842191,1738813832341,-346.30949659,9.947e-05,2]
[351842192,1738813832351,-3501.42194969,9.948e-05,2]
[351842193,1738813832362,-1422.51268716,9.948e-05,2]
[351842194,1738813832371,-12123.33365351,9.948e-05,2]
[351842195,1738813832380,-282.0149211,9.948e-05,2]
[351842196,1738813832390,-5760.43530885,9.948e-05,2]
[351842197,1738813832400,-803.28453,9.948e-05,2]
[351842495,1738813837850,-832.01225953,9.948e-05,2]
[351842496,1738813837863,-7967.66415276,9.948e-05,2]
[351842497,1738813837874,-346.30949659,9.951e-05,2]
[351842498,1738813837885,-435.47405554,9.952e-05,2]
[351842499,1738813837907,-6142.09988395,9.952e-05,2]
[351842500,1738813837918,-346.30949659,9.954e-05,2]
[351842501,1738813837927,-2123.67526186,9.956e-05,2]
[351842502,1738813837939,-4453.89867763,9.956e-05,2]
[351842503,1738813837949,-4923.93463685,9.958e-05,2]
[351842504,1738813837959,-282.0149211,9.958e-05,2]
[351842505,1738813837968,-200.0,9.958e-05,2]
[351842506,1738813837978,-12319.40222677,9.96e-05,2]
[351842507,1738813837991,-3043.99402437,9.96e-05,2]
[351842508,1738813838002,-5307.96625864,9.961e-05,2]
[351842509,1738813838014,-1003.64839968,9.961e-05,2]
[351842510,1738813838027,-5811.71899519,9.961e-05,2]
[351842511,1738813838036,-784.31755481,9.961e-05,2]
[351842512,1738813838047,-1203.88782761,9.961e-05,2]
[351842513,1738813838059,-893.37527308,9.961e-05,2]
[351842514,1738813838069,-2618.57472692,9.963e-05,2]
[351842515,1738813838086,-475.15510397,9.963e-05,2]
[351842516,1738813838136,-960.0000012,9.963e-05,2]
[351842517,1738813838150,-8069.60382142,9.963e-05,2]
[351842518,1738813838160,-200.0,9.966e-05,2]
[351842519,1738813838172,-11436.14070013,9.969e-05,2]
[351842520,1738813838190,-11436.14070013,9.971e-05,2]
[351842522,1738813838201,-11436.14070013,9.984e-05,2]
[351842524,1738813838211,-15363.39625114,9.984e-05,2]
[351842526,1738813838222,-200.0,9.985e-05,2]
[351842527,1738813838231,-282.0149211,9.989e-05,2]
[351842528,1738813838247,-4923.93463685,9.989e-05,2]
[351842529,1738813838257,-200.0,9.99e-05,2]
[351842531,1738813838269,-2881.5806555,9.994e-05,2]
[351842533,1738813838279,-6577.57393949,9.994e-05,2]
[351842535,1738813838288,-200.0,9.996e-05,2]
[351842537,1738813838299,-200.0,0.0001,2]
[351842539,1738813838309,-550.0,0.00013,2]
[351842541,1738813838320,-150.0,0.00014,2]
[351842544,1738813838330,-150.0,0.000143,2]
[351842546,1738813838339,-600.0,0.00015,2]
[351842548,1738813838349,-150.0,0.00015677,2]
[351842550,1738813838359,-319.07,0.0001679,2]
[351842552,1738813838369,-376.57,0.00016801,2]
[351842554,1738813838380,-375.63,0.0001681,2]
[351842557,1738813838391,-372.62,0.00016828,2]
[351842558,1738813838401,-374.81,0.0001686,2]
[351842560,1738813838411,-378.6,0.00016918,2]
[351842562,1738813838421,-650.0,0.00017,2]
[351842564,1738813838430,-373.9,0.00017028,2]
[351842566,1738813838440,-369.97,0.00017233,2]
[351842568,1738813838449,-375.29,0.00017609,2]
[351842570,1738813838458,-1001.40728638,0.00018,2]
[351842572,1738813838468,-1500.0,0.00018265,2]
[351842574,1738813838478,-244.27,0.00018359,2]
[351842576,1738813838487,-150.66,0.00018439,2]
[351842578,1738813838496,-1000.0,0.00018504,2]